bitfinex-derivatives/quotes_SOLF0:USTF0_20260105
["timestamp","ask_amount","ask_price","bid_price","bid_amount"]
[1767634050635,94.89116338,134.62,134.55,6.6905]
[1767634051443,35.02350251,134.64,134.55,0.334805]
[1767634051633,35.36032129,134.64,134.55,0.334805]
[1767634052641,35.36032129,134.64,134.56,0.334805]
[1767634052835,35.02350251,134.64,134.57,0.334805]
[1767634053631,0.33681878,134.67,134.57,0.334805]
[1767634054643,0.33681878,134.71,134.6,0.334805]
[1767634054836,5.91769221,134.7,134.61,0.334805]
[1767634055140,0.33681878,134.69,134.61,6.6872]
[1767634056528,8.9056478,134.68,134.61,6.6872]
[1767634058148,7.02111878,134.68,134.61,6.6872]
[1767634059638,0.33681878,134.68,134.61,6.6872]
[1767634060943,0.33681878,134.68,134.61,8.57172902]
[1767634061651,8.9049478,134.7,134.62,0.334805]
[1767634061952,6.6839,134.69,134.62,7.021705]
[1767634062139,7.02071878,134.69,134.62,7.021705]
[1767634062536,8.9052478,134.69,134.62,7.021705]
[1767634064639,7.02071878,134.69,134.62,7.021705]
[1767634065655,87.8,134.71,134.64,7.020805]
[1767634065656,94.4829,134.71,134.64,7.020805]
[1767634065846,94.81971878,134.71,134.64,7.020805]
[1767634066844,6.6831,134.7,134.64,7.020805]
[1767634067147,6.6831,134.7,134.64,0.334805]
[1767634067353,8.9044478,134.7,134.62,7.021405]
[1767634067561,8.9044478,134.7,134.62,8.90593402]
[1767634067744,8.9044478,134.7,134.63,6.6865]
[1767634067944,8.9044478,134.7,134.63,7.021305]
[1767634068244,7.01991878,134.7,134.63,7.021305]
[1767634070038,0.33681878,134.7,134.63,0.334805]
[1767634071256,2.2213478,134.7,134.63,0.334805]
[1767634071439,6.6837,134.69,134.62,1.88452902]
[1767634071646,1.88452902,134.66,134.59,0.334805]
[1767634072150,89.9813478,134.7,134.61,0.334805]
[1767634072467,89.9813478,134.7,134.62,2.21933402]
[1767634072468,88.09681878,134.7,134.62,2.21933402]
[1767634072647,94.78001878,134.7,134.63,6.6865]
[1767634073354,96.6645478,134.7,134.63,6.6865]
[1767634075255,0.31904849,134.68,134.62,6.6869]
[1767634075946,0.31904849,134.68,134.61,1.88452902]
[1767634076146,87.76,134.7,134.62,0.33534885]
[1767634076555,87.76,134.7,134.64,6.6861]
[1767634077555,7.00224849,134.7,134.62,7.02204885]
[1767634078260,7.00224849,134.7,134.63,6.6865]
[1767634078855,8.88677751,134.7,134.63,6.6865]
[1767634080856,8.56772902,134.7,134.63,6.6865]
[1767634081048,0.32500535,134.69,134.63,6.6865]
[1767634081457,0.32500535,134.67,134.59,0.3157019]
[1767634081661,0.32500535,134.65,134.56,2.20023092]
[1767634081952,2.20953437,134.65,134.56,2.20023092]
[1767634082156,2.20953437,134.65,134.57,0.3157019]
[1767634082447,8.89513437,134.65,134.58,6.689]
[1767634082647,0.32500535,134.64,134.58,6.689]
[1767634082848,7.01120535,134.64,134.57,0.3157019]
[1767634083053,2.20953437,134.63,134.55,2.20023092]
[1767634083363,0.32500535,134.6,134.53,6.6912]
[1767634084261,1.88452902,134.59,134.53,6.6912]
[1767634085548,8.89833437,134.59,134.52,0.3157019]
[1767634085755,0.32500535,134.58,134.5,2.20023092]
[1767634086255,0.32500535,134.58,134.52,6.6918]
[1767634088862,1.88452902,134.59,134.52,6.6918]
[1767634089962,1.88452902,134.59,134.53,6.6916]
[1767634090461,1.88452902,134.59,134.51,0.3157019]
[1767634090462,0.32500535,134.64,134.55,7.0062019]
[1767634090663,1.88452902,134.63,134.55,0.3157019]
[1767634091353,2.20953437,134.63,134.55,0.3157019]
[1767634091547,0.32500535,134.62,134.54,1.88452902]
[1767634091751,0.32500535,134.6,134.52,2.20023092]
[1767634091951,0.32500535,134.6,134.53,0.3157019]
[1767634092151,0.32500535,134.6,134.55,6.6906]
[1767634092361,0.32500535,134.6,134.53,0.3157019]
[1767634092863,7.01320535,134.6,134.53,0.3157019]
[1767634094654,7.01320535,134.6,134.53,7.0072019]
[1767634096655,0.32500535,134.6,134.53,7.0072019]
[1767634097264,0.32500535,134.6,134.54,6.6909]
[1767634097970,0.32500535,134.6,134.53,0.3157019]
[1767634097971,0.32500535,134.6,134.55,6.6905]
[1767634098864,1.88452902,134.61,134.56,6.6901]
[1767634099065,0.32500535,134.62,134.56,6.6901]
[1767634099267,1.88452902,134.64,134.55,0.3157019]
[1767634099459,1.88452902,134.64,134.57,0.3157019]
[1767634099661,96.67553437,134.65,134.58,0.3157019]
[1767634100067,96.67553437,134.65,134.59,6.6885]
[1767634100565,89.98953437,134.65,134.59,6.6885]
[1767634101662,96.67513437,134.65,134.58,0.3157019]
[1767634101967,0.32500535,134.64,134.56,2.20023092]
[1767634102571,0.32500535,134.64,134.58,6.6891]
[1767634104574,7.01120535,134.64,134.58,6.6891]
[1767634105071,7.01120535,134.64,134.56,7.0054019]
[1767634105266,7.01120535,134.64,134.56,0.3157019]
[1767634105769,8.89573437,134.64,134.56,0.3157019]
[1767634106469,7.01160535,134.63,134.57,6.6896]
[1767634106671,7.01160535,134.63,134.56,0.3157019]
[1767634107171,6.6872,134.62,134.56,0.3157019]
[1767634110877,6.6881,134.6,134.53,0.34461245]
[1767634112579,7.03344238,134.6,134.54,6.6911]
[1767634114074,7.03344238,134.6,134.53,7.03601245]
[1767634114075,0.34534238,134.59,134.53,7.03601245]
[1767634114676,0.34534238,134.59,134.53,0.34461245]
[1767634114876,2.2298714,134.61,134.53,0.34461245]
[1767634115385,7.03344238,134.61,134.55,6.6905]
[1767634120385,0.34534238,134.6,134.54,6.6911]
[1767634120683,7.03354238,134.6,134.54,6.6911]
[1767634121378,7.03354238,134.6,134.53,7.03611245]
[1767634124582,7.03354238,134.6,134.54,6.6908]
[1767634127691,6.6886,134.59,134.53,0.34461245]
[1767634127888,7.03394238,134.59,134.53,0.34461245]
[1767634128389,6.6891,134.58,134.53,0.34461245]
[1767634128591,0.34534238,134.59,134.53,0.34461245]
[1767634129690,0.34534238,134.59,134.53,7.03601245]
[1767634132094,0.34534238,134.59,134.54,6.691]
[1767634138689,7.03404238,134.59,134.53,7.03591245]
[1767634140594,103.9695,134.69,134.53,0.34461245]
[1767634140802,0.34551458,134.63,134.54,0.32326071]
[1767634141189,0.34551458,134.63,134.57,0.31369847]
[1767634141391,0.34551458,134.65,134.57,2.94730741]
[1767634141700,88.14551458,134.68,134.58,0.31369847]
[1767634141889,5.57500357,134.67,134.58,0.31369847]
[1767634142090,0.34551458,134.67,134.58,0.31369847]
[1767634142290,87.8,134.68,134.58,0.31369847]
[1767634142291,0.34551458,134.7,134.6,0.31369847]
[1767634142606,34.62410482,134.74,134.66,0.31369847]
[1767634142898,34.9696194,134.74,134.66,0.31369847]
[1767634143103,34.62410482,134.74,134.68,0.31369847]
[1767634143493,88.14551458,134.76,134.68,0.31369847]
[1767634144303,0.34551458,134.75,134.68,0.31369847]
[1767634144900,0.34551458,134.75,134.66,0.31369847]
[1767634145894,0.34551458,134.73,134.63,0.31369847]
[1767634146508,7.02801458,134.72,134.63,0.31369847]
[1767634147006,0.34551458,134.72,134.63,0.31369847]
[1767634147809,0.34551458,134.71,134.63,0.31369847]
[1767634148413,6.6838,134.69,134.63,0.31369847]
[1767634149118,7.02841458,134.71,134.63,0.31369847]
[1767634149413,0.34551458,134.71,134.63,0.31369847]
[1767634150611,6.6834,134.7,134.63,0.31369847]
[1767634151810,104.28841458,134.73,134.63,0.31369847]
[1767634152010,0.34551458,134.71,134.63,0.31369847]
[1767634153303,6.6843,134.68,134.63,0.31369847]
[1767634153699,0.34551458,134.67,134.58,3.26100588]
[1767634153906,0.34551458,134.67,134.58,0.31369847]
[1767634154711,0.34551458,134.67,134.59,0.31369847]
[1767634155208,6.6853,134.66,134.59,0.31369847]
[1767634156302,6.6858,134.65,134.59,0.31369847]
[1767634156503,0.34551458,134.67,134.59,0.31369847]
[1767634157308,0.34551458,134.67,134.6,0.31369847]
[1767634158612,7.03021458,134.67,134.6,0.31369847]
[1767634160411,6.6857,134.65,134.6,0.31369847]
[1767634160906,6.6857,134.65,134.57,0.31369847]
[1767634161510,6.6857,134.65,134.57,7.00309847]
[1767634161705,6.6864,134.64,134.57,7.00309847]
[1767634162212,6.6864,134.64,134.58,0.31369847]
[1767634163909,7.03131458,134.65,134.58,0.31369847]
[1767634164223,0.34551458,134.65,134.59,6.6885]
[1767634164511,87.76,134.66,134.59,7.00219847]
[1767634164812,87.76,134.66,134.6,0.31369847]
[1767634165012,6.6858,134.65,134.6,0.31369847]
[1767634168011,6.6858,134.65,134.59,6.6886]
[1767634169216,6.6858,134.65,134.6,0.31369847]
[1767634169719,7.03041458,134.67,134.6,0.31369847]
[1767634169907,0.34551458,134.67,134.6,0.31369847]
[1767634171417,0.34551458,134.67,134.59,7.03395017]
[1767634171718,6.6851,134.66,134.59,7.03395017]
[1767634172717,6.6851,134.66,134.6,6.6881]
[1767634172917,6.6851,134.66,134.56,107.01270741]
[1767634172918,6.6844,134.68,134.61,0.34535017]
[1767634173114,0.32799461,134.71,134.61,0.34535017]
[1767634173914,0.32799461,134.7,134.63,6.6863]
[1767634175109,7.01169461,134.69,134.61,0.34535017]
[1767634176218,0.32799461,134.71,134.63,0.34535017]
[1767634177323,0.32799461,134.7,134.63,0.34535017]
[1767634177518,7.01109461,134.7,134.63,7.03185017]
[1767634177725,0.32799461,134.69,134.63,7.03185017]
[1767634177927,0.32799461,134.69,134.6,0.34535017]
[1767634178519,1.88438726,134.68,134.6,0.34535017]
[1767634179028,0.32799461,134.68,134.6,0.34535017]
[1767634179316,2.21238187,134.68,134.6,0.34535017]
[1767634179516,8.89658187,134.68,134.61,6.6873]
[1767634179829,8.89658187,134.68,134.61,7.03265017]
[1767634180621,8.89658187,134.68,134.62,6.687]
[1767634182132,2.21238187,134.68,134.62,6.687]
[1767634182425,0.32799461,134.68,134.63,6.6866]
[1767634182830,8.56798726,134.7,134.64,6.6861]
[1767634183127,8.89598187,134.7,134.64,6.6861]
[1767634183519,0.32799461,134.69,134.62,8.91633743]
[1767634183924,7.01159461,134.69,134.62,8.91633743]
[1767634184126,0.32799461,134.69,134.64,6.6861]
[1767634185133,0.32799461,134.69,134.62,7.03195017]
[1767634185428,0.32799461,134.69,134.62,6.6866]
[1767634185630,0.32799461,134.67,134.62,6.6866]
[1767634185820,0.32799461,134.67,134.6,0.34535017]
[1767634186020,0.32799461,134.69,134.62,0.34535017]
[1767634186434,2.21238187,134.69,134.62,0.34535017]
[1767634187430,0.32799461,134.69,134.62,0.34535017]
[1767634187628,7.01169461,134.69,134.63,6.6865]
[1767634188536,0.32799461,134.69,134.64,6.6858]
[1767634188727,0.32799461,134.69,134.62,0.34535017]
[1767634189333,0.32799461,134.69,134.63,0.34535017]
[1767634190530,0.32799461,134.69,134.64,6.6859]
[1767634190837,0.0468015,134.67,134.64,6.6859]
[1767634193045,0.0468015,134.67,134.63,0.34535017]
[1767634194938,0.0468015,134.67,134.63,7.03185017]
[1767634195434,0.3907988,134.67,134.6,0.31829195]
[1767634195635,2.27518606,134.67,134.6,7.00609195]
[1767634196232,8.95988606,134.67,134.61,6.6876]
[1767634196642,7.0754988,134.67,134.61,6.6876]
[1767634196940,8.95988606,134.67,134.61,6.6876]
[1767634198138,6.6851,134.66,134.6,0.31829195]
[1767634199138,2.27518606,134.67,134.61,6.6876]
[1767634199340,0.3907988,134.67,134.61,6.6876]
[1767634200232,7.0755988,134.67,134.6,7.00639195]
[1767634200431,7.0755988,134.67,134.6,0.31829195]
[1767634200729,0.0468015,134.67,134.61,0.31869221]
[1767634200929,0.35992353,134.67,134.61,7.00629221]
[1767634201151,0.35992353,134.67,134.61,0.31869221]
[1767634201638,0.35992353,134.67,134.62,6.6867]
[1767634201839,0.35992353,134.67,134.61,0.31869221]
[1767634202038,0.35992353,134.67,134.6,1.88438726]
[1767634202039,0.0468015,134.67,134.63,0.33510545]
[1767634202341,0.31312203,134.72,134.66,2.21949271]
[1767634202641,0.31312203,134.74,134.67,0.33510545]
[1767634203241,0.31312203,134.74,134.67,7.01930545]
[1767634204232,0.31312203,134.74,134.68,6.684]
[1767634204435,0.31312203,134.76,134.68,0.33510545]
[1767634204639,0.31312203,134.76,134.69,0.33510545]
[1767634204834,6.99332203,134.76,134.69,7.01850545]
[1767634205743,0.31312203,134.76,134.69,7.01850545]
[1767634206039,1.29202324,134.79,134.7,6.683]
[1767634206237,0.31312203,134.78,134.71,0.33510545]
[1767634206836,6.99232203,134.78,134.71,7.01760545]
[1767634207037,0.31312203,134.78,134.71,0.33510545]
[1767634207733,87.76,134.8,134.72,0.33510545]
[1767634207734,88.07312203,134.8,134.72,0.33510545]
[1767634207940,88.07312203,134.8,134.74,0.33510545]
[1767634208131,41.73706887,134.83,134.75,2.21949271]
[1767634208339,0.31312203,134.81,134.75,0.04712411]
[1767634208637,0.31312203,134.79,134.75,0.04712411]
[1767634210530,6.6783,134.8,134.75,0.04712411]
[1767634210736,6.99142203,134.8,134.75,0.04712411]
[1767634210946,6.6788,134.79,134.75,0.04712411]
[1767634213443,6.99192203,134.79,134.72,0.33510545]
[1767634214045,6.99192203,134.79,134.72,2.21949271]
[1767634214239,6.99192203,134.79,134.72,8.90159271]
[1767634215047,0.31312203,134.79,134.73,0.33510545]
[1767634215247,0.31312203,134.8,134.73,0.33510545]
[1767634215946,6.99192203,134.79,134.73,0.33510545]
[1767634216543,6.99122203,134.81,134.73,0.33510545]
[1767634216848,0.31312203,134.81,134.75,0.33510545]
[1767634218441,6.99102203,134.81,134.75,0.33510545]
[1767634218648,6.99102203,134.81,134.74,0.33510545]
[1767634219149,6.99102203,134.81,134.74,7.01620545]
[1767634223044,6.99102203,134.81,134.74,8.90059271]
[1767634223754,0.31312203,134.79,134.72,7.01680545]
[1767634224053,2.19750929,134.79,134.72,7.01680545]
[1767634224648,6.99232203,134.78,134.72,0.33510545]
[1767634225753,6.99302203,134.77,134.7,2.21949271]
[1767634226557,6.99302203,134.77,134.7,8.90259271]
[1767634227053,6.99302203,134.77,134.7,7.01820545]
[1767634227351,6.99302203,134.77,134.7,8.90259271]
[1767634228650,6.99332203,134.76,134.7,7.01820545]
[1767634228855,0.31312203,134.73,134.64,2.21949271]
[1767634229065,0.31312203,134.73,134.65,0.33510545]
[1767634229649,6.99482203,134.73,134.67,6.6846]
[1767634231150,6.99482203,134.73,134.65,8.90469271]
[1767634231351,6.99482203,134.73,134.66,0.31597438]
[1767634232562,6.99482203,134.73,134.66,7.00107438]
[1767634233256,0.31312203,134.73,134.66,0.31597438]
[1767634234457,1.88438726,134.74,134.67,0.31597438]
[1767634234649,2.20733986,134.74,134.67,0.31597438]
[1767634235162,0.3229526,134.73,134.67,0.31597438]
[1767634235358,0.3229526,134.71,134.64,0.31597438]
[1767634235762,0.3229526,134.71,134.65,6.6855]
[1767634236857,6.6824,134.72,134.66,7.00107438]
[1767634237862,0.3229526,134.73,134.66,7.00107438]
[1767634239666,7.0046526,134.73,134.66,7.00107438]
[1767634240058,7.0046526,134.73,134.66,0.31597438]
[1767634240365,0.3229526,134.73,134.67,0.31597438]
[1767634240863,0.3229526,134.73,134.68,6.6841]
[1767634241362,6.6812,134.74,134.68,6.6841]
[1767634241561,0.3229526,134.75,134.68,7.00007438]
[1767634242462,7.0036526,134.75,134.68,7.00007438]
[1767634242952,7.0036526,134.75,134.69,6.6836]
[1767634243157,7.0031526,134.76,134.7,0.31597438]
[1767634243857,94.3597,134.77,134.7,6.99907438]
[1767634244457,94.3597,134.77,134.7,0.31597438]
[1767634244660,94.6826526,134.77,134.7,0.31597438]
[1767634245666,94.6826526,134.77,134.71,6.6826]
[1767634245863,88.0029526,134.77,134.71,6.6826]
[1767634246067,88.0029526,134.77,134.71,6.99857438]
[1767634246268,0.3229526,134.79,134.72,0.31597438]
[1767634247267,0.3229526,134.79,134.73,0.31597438]
[1767634248663,0.3229526,134.79,134.73,6.99757438]
[1767634248865,6.6782,134.8,134.74,0.31597438]
[1767634249265,6.6782,134.8,134.74,6.99707438]
[1767634249461,7.0005526,134.82,134.74,0.31597438]
[1767634249661,87.72,134.83,134.76,0.31597438]
[1767634249970,7.0001526,134.82,134.76,0.31597438]
[1767634250462,0.3229526,134.82,134.76,6.99607438]
[1767634253477,6.6767,134.83,134.74,2.94206427]
[1767634253478,103.8174,134.89,134.78,0.33867405]
[1767634253666,103.8015,134.91,134.81,0.33867405]
[1767634253971,106.76676427,134.88,134.78,0.33867405]
[1767634254184,2.94206427,134.86,134.76,0.33867405]
[1767634254661,6.6764,134.84,134.77,0.33867405]
[1767634255767,6.6768,134.83,134.77,0.33867405]
[1767634256162,6.91413708,134.83,134.74,0.33867405]
[1767634256775,6.91343708,134.85,134.77,0.33867405]
[1767634258681,6.91343708,134.85,134.77,7.01827405]
[1767634258866,6.91343708,134.85,134.78,0.33867405]
[1767634259380,0.23733708,134.84,134.75,0.33867405]
[1767634259580,0.23733708,134.83,134.75,0.33867405]
[1767634260083,6.6778,134.81,134.75,0.33867405]
[1767634260283,6.91513708,134.81,134.71,2.94206427]
[1767634260476,6.6783,134.8,134.73,7.02017405]
[1767634261682,6.91602029,134.79,134.71,7.00662051]
[1767634262371,6.6792,134.78,134.71,0.32442051]
[1767634263282,6.6799,134.77,134.71,0.32442051]
[1767634265178,6.91762029,134.76,134.68,7.00812051]
[1767634265884,0.23732029,134.76,134.69,0.32442051]
[1767634266179,0.23732029,134.77,134.69,0.32442051]
[1767634266486,6.6807,134.75,134.69,0.32442051]
[1767634267176,6.91742029,134.77,134.69,0.32442051]
[1767634267671,6.6802,134.76,134.69,7.00792051]
[1767634269479,6.91822029,134.75,134.67,7.00882051]
[1767634271686,6.6812,134.74,134.67,7.00882051]
[1767634271885,6.91852029,134.74,134.67,7.00882051]
[1767634272086,0.23732029,134.74,134.68,6.6841]
[1767634273988,6.6806,134.76,134.69,6.6836]
[1767634274185,0.23732029,134.77,134.69,0.32442051]
[1767634274384,0.23732029,134.8,134.71,0.32442051]
[1767634274579,0.23732029,134.82,134.74,0.32442051]
[1767634275374,0.04721617,134.79,134.74,0.32442051]
[1767634276392,0.04721617,134.79,134.74,7.00542051]
[1767634276688,0.23732029,134.82,134.74,0.32442051]
[1767634276882,0.23732029,134.82,134.75,0.37181338]
[1767634277490,6.91452029,134.82,134.75,0.37181338]
[1767634278591,6.91452029,134.82,134.75,7.05241338]
[1767634278797,6.91452029,134.82,134.75,0.37181338]
[1767634280587,6.91452029,134.82,134.76,6.6801]
[1767634280788,0.23732029,134.82,134.76,6.6801]
[1767634281993,0.23732029,134.81,134.75,0.37181338]
[1767634283093,6.91512029,134.81,134.75,0.04739287]
[1767634283996,0.23732029,134.81,134.75,0.04739287]
[1767634285588,0.23732029,134.81,134.75,6.72799287]
[1767634286801,0.23732029,134.81,134.75,0.04739287]
[1767634287801,0.23732029,134.8,134.75,0.04739287]
[1767634288306,6.91562029,134.8,134.75,0.04739287]
[1767634289901,6.6787,134.79,134.75,0.04739287]
[1767634292208,6.9162411,134.79,134.75,0.04739287]
[1767634292909,0.19014823,134.76,134.67,0.34377059]
[1767634293512,0.19014823,134.75,134.68,6.6841]
[1767634293718,0.19014823,134.75,134.67,0.34377059]
[1767634294006,6.6813,134.74,134.67,7.02817059]
[1767634294414,6.87144823,134.74,134.67,7.02817059]
[1767634296209,6.87144823,134.74,134.68,6.684]
[1767634296407,0.19014823,134.79,134.7,0.34377059]
[1767634296801,6.86934823,134.79,134.71,0.34377059]
[1767634298608,6.86934823,134.79,134.72,8.56310925]
[1767634299511,6.86934823,134.79,134.72,8.90687984]
[1767634300014,6.6794,134.78,134.72,8.90687984]
[1767634300218,0.19014823,134.77,134.7,7.02657059]
[1767634300515,0.23699725,134.77,134.7,7.02657059]
[1767634302308,6.87034823,134.76,134.7,6.6828]
[1767634302510,0.19014823,134.75,134.69,6.6836]
[1767634303310,6.87084823,134.75,134.69,6.6836]
[1767634303507,6.87084823,134.75,134.69,7.02737059]
[1767634303707,2.07115748,134.77,134.7,0.34377059]
[1767634304019,6.6802,134.76,134.7,0.34377059]
[1767634305213,2.07115748,134.77,134.7,7.02687059]
[1767634305408,0.19014823,134.77,134.7,7.02687059]
[1767634305809,6.87024823,134.77,134.7,7.02687059]
[1767634306721,0.04737792,134.75,134.7,7.02687059]
[1767634310219,6.72807792,134.75,134.7,0.34377059]
[1767634310619,0.19014823,134.72,134.66,0.34377059]
[1767634310913,6.87234823,134.72,134.66,0.34377059]
[1767634312025,0.19014823,134.77,134.69,0.34377059]
[1767634312418,6.6806,134.76,134.69,7.02737059]
[1767634312618,0.04705296,134.74,134.69,7.02737059]
[1767634312822,0.04705296,134.74,134.69,0.34377059]
[1767634313323,0.04705296,134.74,134.69,7.02727059]
[1767634313930,0.04705296,134.74,134.7,7.00830188]
[1767634315420,6.9164449,134.79,134.72,0.32520188]
[1767634315731,6.9164449,134.79,134.72,2.20621113]
[1767634315916,6.9164449,134.79,134.72,8.88831113]
[1767634316122,87.68,134.8,134.73,0.32520188]
[1767634316330,6.9153449,134.81,134.73,0.32520188]
[1767634316730,6.6784,134.8,134.73,0.32520188]
[1767634317124,6.9157449,134.8,134.73,0.32520188]
[1767634317428,6.6788,134.79,134.73,0.32520188]
[1767634318025,6.6788,134.79,134.75,0.04690394]
[1767634318424,0.2373449,134.8,134.75,0.04690394]
[1767634320025,0.2373449,134.82,134.75,0.37210582]
[1767634321023,0.23732969,134.78,134.7,0.34090558]
[1767634321624,0.23732969,134.77,134.7,0.34090558]
[1767634321830,2.11833894,134.77,134.7,0.34090558]
[1767634322533,8.79813894,134.77,134.7,0.34090558]
[1767634322726,6.91712969,134.77,134.7,0.34090558]
[1767634322918,87.7,134.79,134.71,2.22191483]
[1767634323123,87.7,134.79,134.72,0.34090558]
[1767634323835,87.93732969,134.79,134.72,0.34090558]
[1767634324531,87.93732969,134.79,134.72,7.02280558]
[1767634325026,0.23732969,134.78,134.71,1.88100925]
[1767634325227,0.28454213,134.77,134.7,7.02370558]
[1767634326134,0.23732969,134.76,134.68,8.90581483]
[1767634326330,0.23732969,134.76,134.68,2.22191483]
[1767634326729,0.23732969,134.76,134.69,0.34090558]
[1767634327034,87.7,134.79,134.73,0.34090558]
[1767634327234,0.23732969,134.81,134.74,2.22191483]
[1767634327435,6.6782,134.8,134.74,2.22191483]
[1767634328535,0.23732969,134.81,134.72,1.88100925]
[1767634328536,6.91602969,134.79,134.72,1.88100925]
[1767634328729,6.91602969,134.79,134.72,2.22191483]
[1767634329336,8.79643894,134.81,134.73,7.02250558]
[1767634329630,6.91542969,134.81,134.74,2.22191483]
[1767634330535,6.91542969,134.81,134.74,8.90301483]
[1767634333938,0.23732969,134.8,134.74,8.90301483]
[1767634334431,0.23732969,134.8,134.74,7.02200558]
[1767634335036,6.6781,134.81,134.74,7.02200558]
[1767634335433,6.6772,134.82,134.76,0.34090558]
[1767634335633,87.7,134.83,134.76,0.34090558]
[1767634336030,87.93732969,134.83,134.76,0.34090558]
[1767634336634,94.61402969,134.83,134.76,7.02100558]
[1767634337639,94.61402969,134.83,134.76,8.90201483]
[1767634338031,94.61402969,134.83,134.77,6.6795]
[1767634338232,87.93732969,134.83,134.77,7.02040558]
[1767634338738,87.7,134.83,134.78,6.6789]
[1767634338937,400.09932089,134.9,134.8,1.88100925]
[1767634339138,0.23732969,134.89,134.81,0.34090558]
[1767634339440,2.11833894,134.86,134.79,6.6785]
[1767634339641,0.23732969,134.86,134.79,6.6785]
[1767634339844,0.23732969,134.85,134.78,0.34090558]
[1767634340037,2.11833894,134.85,134.78,0.34090558]
[1767634340237,0.23732969,134.85,134.78,0.34090558]
[1767634340438,1.88100925,134.84,134.78,0.34090558]
[1767634341034,0.23732969,134.83,134.75,8.90221483]
[1767634341843,6.91412969,134.83,134.75,8.90221483]
[1767634342041,6.91412969,134.83,134.76,7.02100558]
[1767634343344,0.23732969,134.83,134.76,0.34090558]
[1767634343648,2.11833894,134.82,134.74,7.02170558]
[1767634344542,6.6777,134.81,134.74,7.02170558]
[1767634345151,2.11833894,134.82,134.74,7.02170558]
[1767634345349,2.11833894,134.82,134.75,6.6806]
[1767634345544,2.11833894,134.82,134.75,7.02150558]
[1767634345744,8.79553894,134.82,134.75,7.02150558]
[1767634345944,8.79553894,134.82,134.75,8.90251483]
[1767634347056,6.6778,134.81,134.75,0.34090558]
[1767634348762,0.23732969,134.79,134.72,2.22191483]
[1767634349958,6.91602969,134.79,134.72,7.02260558]
[1767634350156,0.23732969,134.79,134.72,0.34090558]
[1767634350959,8.797766,134.78,134.69,2.21924183]
[1767634351263,87.89745675,134.81,134.74,0.33823258]
[1767634351464,87.66,134.81,134.75,7.01873258]
[1767634351662,6.6775,134.82,134.75,7.01873258]
[1767634352067,6.91495675,134.82,134.75,7.01873258]
[1767634353266,0.23745675,134.82,134.76,6.6801]
[1767634353961,8.55750925,134.84,134.77,7.01783258]
[1767634354166,1.88100925,134.84,134.77,0.33823258]
[1767634354764,8.55720925,134.84,134.78,6.679]
[1767634358769,0.23745675,134.83,134.78,6.679]
[1767634358964,6.91435675,134.83,134.76,6.6797]
[1767634359466,0.23745675,134.83,134.77,6.6796]
[1767634359667,0.23745675,134.83,134.77,7.01783258]
[1767634360863,6.91415675,134.83,134.75,0.33823258]
[1767634361061,0.23745675,134.82,134.73,0.33823258]
[1767634362570,6.91525675,134.81,134.74,6.6807]
[1767634363868,0.23745675,134.8,134.74,6.6807]
[1767634366669,6.91575675,134.8,134.73,0.33823258]
[1767634366864,0.23745675,134.79,134.71,0.33823258]
[1767634367062,0.23745675,134.78,134.71,0.33823258]
[1767634367858,6.6797,134.77,134.71,0.33823258]
[1767634368464,6.91715675,134.77,134.71,0.33823258]
[1767634368865,0.23745675,134.76,134.68,7.02193258]
[1767634369368,0.23745675,134.76,134.69,0.33823258]
[1767634370274,90.8346683,134.79,134.7,0.33823258]
[1767634370476,0.23745675,134.81,134.71,0.33823258]
[1767634370668,0.23745675,134.81,134.72,0.33823258]
[1767634370869,6.6782,134.8,134.73,7.01973258]
[1767634371875,0.23745675,134.8,134.73,0.33823258]
[1767634372267,0.23745675,134.8,134.7,0.33823258]
[1767634372669,0.23745675,134.79,134.7,0.33823258]
[1767634373661,6.6792,134.78,134.71,6.99870741]
[1767634375280,6.6792,134.78,134.72,6.6821]
[1767634375482,6.6792,134.78,134.72,6.99830741]
[1767634376780,6.6786,134.8,134.74,0.31620741]
[1767634377482,6.6778,134.81,134.75,0.31620741]
[1767634378480,0.23786527,134.82,134.75,6.99680741]
[1767634378676,87.66,134.83,134.75,0.31620741]
[1767634379076,94.3369,134.83,134.76,0.31620741]
[1767634379385,6.6769,134.83,134.76,0.31620741]
[1767634379580,6.6769,134.83,134.73,194.54931155]
[1767634379581,0.23786527,134.85,134.77,0.31620741]
[1767634380679,6.91396527,134.85,134.78,6.6791]
[1767634380880,6.91396527,134.85,134.78,6.99332451]
[1767634381084,6.91396527,134.85,134.78,0.31422451]
[1767634381585,0.23722843,134.88,134.79,3.25143606]
[1767634381775,87.68,134.89,134.8,0.31422451]
[1767634382685,94.3538,134.89,134.82,6.677]
[1767634383182,87.68,134.89,134.83,6.99082451]
[1767634383888,0.23722843,134.91,134.84,6.99022451]
[1767634384084,226.97422397,134.94,134.84,6.99022451]
[1767634384285,5.60639616,134.93,134.84,6.99022451]
[1767634384485,6.6723,134.92,134.85,0.31422451]